fUST/lending_fUST_20250920
["ID","MTS","AMOUNT","RATE_DAILY","PERIOD"]
[386472456,1758311447538,-1146.11,0.00022099,2]
[386472458,1758311447548,-1146.11,0.00022099,2]
[386472460,1758311447559,-1146.2341836,0.00022099,2]
[386472463,1758311447570,-272015.68140178,0.000221,2]
[386472476,1758311447681,-516.59118003,0.000221,2]
[386472479,1758311447700,-359.2281997,0.00021133,2]
[386472482,1758311447713,-120.7718003,0.00021133,2]
[386472484,1758311447724,-1129.2282099,0.000221,2]
[386472486,1758311447738,-5056.85840394,0.000221,2]
[386472512,1758311448127,-480.0,0.00021133,2]
[386472514,1758311448136,-480.0,0.00021133,2]
[386472516,1758311448146,-104.36467728,0.00021135,2]
[386472525,1758311448221,-480.0,0.00021133,2]
[386472527,1758311448231,-375.63532272,0.00021135,2]
[386472529,1758311448244,-480.0,0.00021135,2]
[386472531,1758311448255,-480.0,0.00021407,2]
[386472533,1758311448265,-264.86,0.00021407,2]
[386472535,1758311448274,-480.0,0.00021409,2]
[386472537,1758311448285,-480.0,0.00021681,2]
[386472539,1758311448294,-480.0,0.00021683,2]
[386472541,1758311448303,-480.0,0.00021955,2]
[386472542,1758311448312,-36346.76498076,0.000221,2]
[386472544,1758311448323,-1713.48077505,0.00022174,2]
[386472546,1758311448333,-151.0,0.000222,6]
[386472549,1758311448342,-160.0,0.00022215,2]
[386472550,1758311448351,-502.12426079,0.00022221,2]
[386472552,1758311448361,-352.16351282,0.00022221,2]
[386472554,1758311448370,-480.0,0.00022229,2]
[386472556,1758311448379,-480.0,0.00022229,2]
[386472558,1758311448389,-480.0,0.00022229,2]
[386472560,1758311448398,-480.0,0.00022229,2]
[386472562,1758311448408,-480.0,0.00022229,2]
[386472564,1758311448418,-480.0,0.00022229,2]
[386472566,1758311448427,-480.0,0.00022229,2]
[386472568,1758311448437,-480.0,0.00022229,2]
[386472570,1758311448446,-480.0,0.00022229,2]
[386472572,1758311448455,-480.0,0.00022229,2]
[386472574,1758311448465,-480.0,0.00022229,2]
[386472576,1758311448475,-480.0,0.00022229,2]
[386472578,1758311448484,-480.0,0.00022229,2]
[386472580,1758311448494,-994.54,0.00022229,2]
[386472582,1758311448505,-480.0,0.00022229,2]
[386472584,1758311448515,-480.0,0.00022231,2]
[386472586,1758311448525,-480.0,0.00022231,2]
[386472588,1758311448536,-480.0,0.00022231,2]
[386472591,1758311448547,-480.0,0.00022231,2]
[386472593,1758311448558,-480.0,0.00022231,2]
[386472594,1758311448567,-480.0,0.00022231,2]
[386472596,1758311448577,-480.0,0.00022231,2]
[386472599,1758311448587,-480.0,0.00022231,2]
[386472600,1758311448597,-480.0,0.00022231,2]
[386472603,1758311448607,-318.93726719,0.00022231,2]
[386472605,1758311448617,-186.36,0.00022231,2]
[386472606,1758311448627,-480.0,0.00022231,2]
[386472608,1758311448637,-480.0,0.00022231,2]
[386472610,1758311448648,-480.0,0.00022231,2]
[386472612,1758311448658,-480.0,0.00022231,2]
[386472614,1758311448667,-480.0,0.00022231,2]
[386472616,1758311448677,-480.0,0.00022231,2]
[386472618,1758311448687,-480.0,0.00022231,2]
[386472620,1758311448696,-694.5,0.00022231,2]
[386472622,1758311448707,-480.0,0.00022231,2]
[386472624,1758311448716,-480.0,0.00022231,2]
[386472626,1758311448726,-480.0,0.00022231,2]
[386472628,1758311448736,-480.0,0.00022231,2]
[386472630,1758311448746,-480.0,0.00022233,2]
[386472632,1758311448756,-760.52,0.00022233,2]
[386472634,1758311448766,-480.0,0.00022233,2]
[386472636,1758311448776,-480.0,0.00022233,2]
[386472638,1758311448786,-480.0,0.00022233,2]
[386472640,1758311448795,-480.0,0.00022233,2]
[386472642,1758311448804,-480.0,0.00022233,2]
[386472644,1758311448814,-615.84913682,0.00022234,2]
[386472646,1758311448824,-167.44689876,0.00022234,2]
[386472648,1758311448833,-480.0,0.00022234,2]
[386472650,1758311448841,-480.0,0.00022234,2]
[386472652,1758311448851,-480.0,0.00022234,2]
[386472654,1758311448860,-495.60309307,0.00022234,2]
[386472656,1758311448870,-480.0,0.00022234,2]
[386472658,1758311448879,-567.45,0.00022234,2]
[386472660,1758311448888,-620.94663024,0.00022234,2]
[386472662,1758311448898,-1450.7,0.00022236,2]
[386472664,1758311448907,-180.95513383,0.00022236,2]
[386472666,1758311448917,-477.04835463,0.00022236,2]
[386472668,1758311448927,-480.0,0.00022236,2]
[386472669,1758311448936,-809.3,0.00022236,2]
[386472671,1758311448946,-3161.97,0.00022236,2]
[386472673,1758311448955,-480.0,0.00022236,2]
[386472675,1758311448965,-480.0,0.00022237,2]
[386472677,1758311448974,-480.0,0.00022237,2]
[386472679,1758311448984,-480.0,0.00022237,2]
[386472681,1758311448993,-542.05,0.00022237,2]
[386472683,1758311449003,-151.0,0.000223,9]
[386472685,1758311449012,-583.84,0.00022498,3]
[386472687,1758311449022,-399.96,0.00022498,3]
[386472689,1758311449031,-151.0,0.000225,6]
[386472691,1758311449041,-203.41791899,0.00022503,2]
[386472693,1758311449051,-480.0,0.00022503,2]
[386472695,1758311449060,-480.0,0.00022503,2]
[386472697,1758311449070,-480.0,0.00022503,2]
[386472699,1758311449079,-628.3,0.00022503,2]
[386472701,1758311449088,-480.0,0.00022503,2]
[386472703,1758311449098,-480.0,0.00022503,2]
[386472705,1758311449107,-480.0,0.00022503,2]
[386472707,1758311449116,-480.0,0.00022503,2]
[386472709,1758311449126,-480.0,0.00022503,2]
[386472711,1758311449135,-480.0,0.00022503,2]
[386472713,1758311449145,-994.54,0.00022503,2]
[386472714,1758311449155,-480.0,0.00022503,2]
[386472717,1758311449165,-480.0,0.00022505,2]
[386472719,1758311449176,-480.0,0.00022505,2]
[386472720,1758311449186,-480.0,0.00022505,2]
[386472722,1758311449196,-480.0,0.00022505,2]
[386472724,1758311449206,-480.0,0.00022505,2]
[386472726,1758311449216,-480.0,0.00022505,2]
[386472728,1758311449226,-480.0,0.00022505,2]
[386472731,1758311449238,-519.9,0.00022505,2]
[386472732,1758311449251,-480.0,0.00022505,2]
[386472734,1758311449262,-480.0,0.00022505,2]
[386472736,1758311449272,-480.0,0.00022505,2]
[386472738,1758311449282,-480.0,0.00022505,2]
[386472740,1758311449292,-480.0,0.00022505,2]
[386472743,1758311449303,-480.0,0.00022505,2]
[386472744,1758311449312,-211.97218073,0.00022505,2]
[386472746,1758311449322,-694.5,0.00022505,2]
[386472748,1758311449332,-480.0,0.00022505,2]
[386472751,1758311449342,-480.0,0.00022505,2]
[386472752,1758311449351,-480.0,0.00022505,2]
[386472754,1758311449361,-480.0,0.00022505,2]
[386472756,1758311449370,-480.0,0.00022507,2]
[386472758,1758311449379,-760.52,0.00022507,2]
[386472760,1758311449389,-480.0,0.00022507,2]
[386472762,1758311449398,-480.0,0.00022507,2]
[386472764,1758311449408,-480.0,0.00022507,2]
[386472766,1758311449417,-480.0,0.00022507,2]
[386472768,1758311449426,-480.0,0.00022507,2]
[386472770,1758311449436,-480.0,0.00022508,2]
[386472772,1758311449446,-480.0,0.00022508,2]
[386472774,1758311449455,-480.0,0.00022508,2]
[386472776,1758311449466,-480.0,0.00022508,2]
[386472778,1758311449475,-1450.7,0.0002251,2]
[386472780,1758311449484,-480.0,0.0002251,2]
[386472782,1758311449494,-809.3,0.0002251,2]
[386472784,1758311449506,-3161.97,0.0002251,2]
[386472786,1758311449516,-480.0,0.0002251,2]
[386472788,1758311449525,-480.0,0.00022511,2]
[386472790,1758311449535,-480.0,0.00022511,2]
[386472792,1758311449544,-542.05,0.00022511,2]
[386472794,1758311449553,-1000.0,0.00022521,2]
[386472795,1758311449562,-1500.0,0.00022568,2]
[386472797,1758311449571,-1000.0,0.00022621,2]
[386472799,1758311449581,-260.0,0.00022763,2]
[386472801,1758311449590,-480.0,0.00022777,2]
[386472803,1758311449600,-480.0,0.00022777,2]
[386472805,1758311449610,-480.0,0.00022777,2]
[386472808,1758311449620,-480.0,0.00022777,2]
[386472809,1758311449629,-480.0,0.00022777,2]
[386472811,1758311449639,-480.0,0.00022777,2]
[386472813,1758311449648,-480.0,0.00022777,2]
[386472815,1758311449657,-480.0,0.00022777,2]
[386472817,1758311449667,-994.54,0.00022777,2]
[386472819,1758311449676,-530.62620378,0.00022777,2]
[386472821,1758311449685,-480.0,0.00022779,2]
[386472823,1758311449695,-480.0,0.00022779,2]
[386472825,1758311449704,-480.0,0.00022779,2]
[386472827,1758311449713,-343.93,0.00022779,2]
[386472829,1758311449722,-480.0,0.00022779,2]
[386472831,1758311449731,-480.0,0.00022779,2]
[386472833,1758311449741,-468.45083013,0.00022779,2]
[386472835,1758311449750,-480.0,0.00022779,2]
[386472837,1758311449762,-480.0,0.00022779,2]
[386472839,1758311449771,-605.84,0.00022779,2]
[386472841,1758311449781,-480.0,0.00022779,2]
[386472843,1758311449791,-480.0,0.00022779,2]
[386472845,1758311449801,-694.5,0.00022779,2]
[386472847,1758311449810,-556.80183939,0.00022779,2]
[386472849,1758311449820,-480.0,0.00022779,2]
[386472851,1758311449829,-480.0,0.00022779,2]
[386472853,1758311449838,-480.0,0.00022779,2]
[386472855,1758311449848,-760.52,0.00022781,2]
[386472856,1758311449857,-480.0,0.00022781,2]
[386472858,1758311449867,-480.0,0.00022781,2]
[386472860,1758311449876,-258.75,0.00022781,2]
[386472862,1758311449885,-484.52,0.00022782,2]
[386472864,1758311449894,-480.0,0.00022782,2]
[386472866,1758311449904,-480.0,0.00022782,2]
[386472868,1758311449913,-480.0,0.00022782,2]
[386472870,1758311449922,-1450.7,0.00022784,2]
[386472872,1758311449932,-480.0,0.00022784,2]
[386472874,1758311449941,-809.3,0.00022784,2]
[386472876,1758311449951,-3161.97,0.00022784,2]
[386472878,1758311449960,-480.0,0.00022784,2]
[386472879,1758311449969,-480.0,0.00022785,2]
[386472880,1758311449979,-542.05,0.00022785,2]
[386472881,1758311449988,-420.0,0.00022983,2]
[386472882,1758311449998,-420.0,0.00022983,2]
[386472883,1758311450008,-217.99592756,0.00023,2]
[386472884,1758311450018,-848.13460282,0.00023,2]
[386472885,1758311450027,-233.43972884,0.00023,2]
[386472886,1758311450037,-160.0,0.00023,2]
[386472887,1758311450046,-160.0,0.00023,2]
[386472888,1758311450057,-160.0,0.00023,2]
[386472889,1758311450068,-160.0,0.00023,2]
[386472890,1758311450079,-1713.48077505,0.0002304,2]
[386472891,1758311450091,-480.0,0.00023051,2]
[386472892,1758311450101,-480.0,0.00023051,2]
[386472893,1758311450111,-527.76085062,0.00023051,2]
[386472894,1758311450121,-480.0,0.00023051,2]
[386472895,1758311450131,-480.0,0.00023051,2]
[386472896,1758311450140,-480.0,0.00023051,2]
[386472897,1758311450149,-480.0,0.00023051,2]
[386472898,1758311450159,-480.0,0.00023051,2]
[386472899,1758311450168,-994.54,0.00023051,2]
[386472901,1758311450178,-244.95,0.00023053,2]
[386472903,1758311450187,-374.12,0.00023053,2]
[386472905,1758311450196,-381.60144457,0.00023053,2]
[386472907,1758311450206,-480.0,0.00023053,2]
[386472909,1758311450215,-480.0,0.00023053,2]
[386472911,1758311450224,-480.0,0.00023053,2]
[386472913,1758311450233,-480.0,0.00023053,2]
[386472915,1758311450247,-480.0,0.00023053,2]
[386472917,1758311450257,-480.0,0.00023053,2]
[386472919,1758311450267,-694.5,0.00023053,2]
[386472921,1758311450277,-480.0,0.00023053,2]
[386472923,1758311450287,-480.0,0.00023053,2]
[386472925,1758311450296,-480.0,0.00023053,2]
[386472927,1758311450306,-760.52,0.00023055,2]
[386472929,1758311450318,-480.0,0.00023055,2]
[386472931,1758311450327,-480.0,0.00023055,2]
[386472933,1758311450337,-480.0,0.00023056,2]
[386472935,1758311450346,-480.0,0.00023056,2]
[386472937,1758311450355,-480.0,0.00023056,2]
[386472939,1758311450364,-1450.7,0.00023058,2]
[386472940,1758311450373,-480.0,0.00023058,2]
[386472942,1758311450383,-809.3,0.00023058,2]
[386472944,1758311450392,-3161.97,0.00023058,2]
[386472946,1758311450401,-480.0,0.00023058,2]
[386472948,1758311450411,-480.0,0.00023059,2]
[386472950,1758311450421,-542.05,0.00023059,2]
[386472952,1758311450431,-1000.0,0.00023068,2]
[386472954,1758311450441,-1000.0,0.00023168,2]
[386472956,1758311450450,-413.87109012,0.00023287,2]
[386472958,1758311450460,-500.0,0.00023311,2]
[386472960,1758311450469,-480.0,0.00023325,2]
[386472962,1758311450478,-480.0,0.00023325,2]
[386472963,1758311450488,-549.42,0.00023325,2]
[386472964,1758311450497,-480.0,0.00023325,2]
[386472965,1758311450507,-480.0,0.00023325,2]
[386472966,1758311450516,-480.0,0.00023325,2]
[386472967,1758311450527,-480.0,0.00023325,2]
[386472968,1758311450537,-994.54,0.00023325,2]
[386472969,1758311450547,-480.0,0.00023327,2]
[386472970,1758311450556,-216.55,0.00023327,2]
[386472971,1758311450564,-480.0,0.00023327,2]
[386472972,1758311450574,-480.0,0.00023327,2]
[386472973,1758311450583,-451.71428063,0.00023327,2]
[386472974,1758311450597,-28.28571937,0.00023327,2]
[386472975,1758311450606,-480.0,0.00023327,2]
[386472976,1758311450615,-694.5,0.00023327,2]
[386472977,1758311450625,-364.03,0.00023327,2]
[386472978,1758311450633,-480.0,0.00023327,2]
[386472979,1758311450642,-90.81832363,0.00023327,2]
[386472980,1758311450655,-389.18167637,0.00023327,2]
[386472981,1758311450764,-110.81832263,0.00023329,2]
[386475171,1758311492460,2193.40190421,0.00021035,2]
[386475172,1758311492483,5202.80409579,0.00021035,2]
[386475191,1758312071693,1761.4863,0.00029342,60]
[386475201,1758312451129,-498.89600899,0.00021128,2]
[386475220,1758312632497,-160.0,0.00021129,2]
[386475221,1758312632507,-326.23611032,0.0002113,2]
[386475222,1758312632517,-288.88777255,0.0002113,2]
[386475223,1758312632527,-386.28767241,0.0002113,2]
[386475224,1758312632536,-438.93918859,0.0002113,2]
[386475225,1758312632546,-195.0,0.0002113,2]
[386475226,1758312632556,-300.0,0.0002113,2]
[386475227,1758312632565,-17253.7190571,0.00021131,2]
[386475935,1758312640422,-4934.49238282,0.00021131,2]
[386475938,1758312640432,-164.60000002,0.00021131,2]
[386475941,1758312640442,-643.01,0.00021131,2]
[386475944,1758312640451,-16.39761716,0.00021131,2]
[386476092,1758312643499,-463.60238284,0.00021131,2]
[386476093,1758312643509,-480.0,0.00021131,2]
[386476094,1758312643518,-480.0,0.00021131,2]
[386476095,1758312643527,-538.26,0.00021131,2]
[386476096,1758312643535,-480.0,0.00021131,2]
[386476097,1758312643544,-480.0,0.00021131,2]
[386476098,1758312643553,-480.0,0.00021131,2]
[386476099,1758312643562,-480.0,0.00021131,2]
[386476100,1758312643571,-480.0,0.00021131,2]
[386476101,1758312643579,-480.0,0.00021131,2]
[386476102,1758312643588,-480.0,0.00021131,2]
[386476103,1758312643598,-648.61,0.00021131,2]
[386476104,1758312643607,-480.0,0.00021131,2]
[386476105,1758312643616,-480.0,0.00021132,2]
[386476106,1758312643627,-480.0,0.00021132,2]
[386476107,1758312643637,-528.91,0.00021132,2]
[386476108,1758312643648,-480.0,0.00021132,2]
[386476109,1758312643657,-480.0,0.00021132,2]
[386476110,1758312643666,-480.0,0.00021132,2]
[386476111,1758312643675,-480.0,0.00021132,2]
[386476112,1758312643690,-480.0,0.00021132,2]
[386476113,1758312643699,-480.0,0.00021132,2]
[386476114,1758312643709,-480.0,0.00021132,2]
[386476115,1758312643721,-500.0,0.00021132,2]
[386476116,1758312643731,-500.0,0.00021132,2]
[386476117,1758312643740,-480.0,0.00021132,2]
[386476118,1758312643750,-480.0,0.00021132,2]
[386476120,1758312643759,-480.0,0.00021132,2]
[386476122,1758312643768,-480.0,0.00021132,2]
[386476124,1758312643778,-480.0,0.00021132,2]
[386476126,1758312643788,-480.0,0.00021132,2]
[386476128,1758312643798,-480.0,0.00021132,2]
[386476130,1758312643807,-480.0,0.00021132,2]
[386476132,1758312643817,-480.0,0.00021133,2]
[386476134,1758312643827,-480.0,0.00021133,2]
[386476136,1758312643837,-480.0,0.00021133,2]
[386476139,1758312643846,-480.0,0.00021133,2]
[386476140,1758312643855,-480.0,0.00021133,2]
[386476142,1758312643865,-480.0,0.00021133,2]
[386476144,1758312643874,-480.0,0.00021133,2]
[386476146,1758312643883,-480.0,0.00021133,2]
[386476148,1758312643893,-480.0,0.00021133,2]
[386476150,1758312643902,-255.01830158,0.00021133,2]
[386476153,1758312643913,-224.98169842,0.00021133,2]
[386476154,1758312643923,-305.01829158,0.00021133,2]
[386476180,1758312644567,-71.41996652,0.00021133,2]
[386476181,1758312644577,-480.0,0.00021133,2]
[386476182,1758312644586,-480.0,0.00021133,2]
[386476183,1758312644596,-480.0,0.00021133,2]
[386476184,1758312644605,-480.0,0.00021133,2]
[386476185,1758312644615,-480.0,0.00021133,2]
[386476186,1758312644624,-480.0,0.00021133,2]
[386476187,1758312644634,-480.0,0.00021133,2]
[386476188,1758312644648,-480.0,0.00021133,2]
[386476189,1758312644657,-480.0,0.00021133,2]
[386476190,1758312644666,-480.0,0.00021133,2]
[386476191,1758312644676,-480.0,0.00021133,2]
[386476192,1758312644686,-480.0,0.00021133,2]
[386476193,1758312644695,-480.0,0.00021133,2]
[386476194,1758312644704,-480.0,0.00021133,2]
[386476195,1758312644715,-657.39005782,0.00021133,2]
[386476244,1758312646530,-480.0,0.00021132,2]
[386476246,1758312646540,-626.58994218,0.00021133,2]
[386476247,1758312646549,-500.0,0.00021134,2]
[386476248,1758312646559,-520.0,0.00021135,3]
[386476251,1758312646569,-480.0,0.00021135,2]
[386476253,1758312646579,-4.60003348,0.00021135,2]
[386476326,1758313750162,-300.0,0.00021125,2]
[386476327,1758313750184,-154.72,0.00021126,2]
[386476344,1758313832690,-300.0,0.00021125,2]
[386476346,1758313832700,-240.0,0.00021125,2]
[386476348,1758313832709,-300.0,0.00021125,2]
[386476349,1758313832719,-300.0,0.00021125,2]
[386476351,1758313832728,-185.0,0.00021125,2]
[386476352,1758313832738,-1200.0,0.00021125,2]
[386476353,1758313832747,-345.28,0.00021126,2]
[386476354,1758313832757,-500.0,0.00021126,2]
[386476355,1758313832766,-500.0,0.00021126,2]
[386476356,1758313832775,-500.0,0.00021126,2]
[386476357,1758313832785,-397.17313818,0.00021126,2]
[386476358,1758313832794,-500.0,0.00021126,2]
[386476359,1758313832803,-500.0,0.00021126,2]
[386476360,1758313832812,-174.92860712,0.00021126,2]
[386476362,1758313832821,-405.87748531,0.00021126,2]
[386476364,1758313832831,-49474.3770808,0.00021126,2]
[386476366,1758313832843,-525.6229192,0.00021126,2]
[386476367,1758313832853,-160.0,0.00021126,2]
[386476368,1758313832863,-846.48416503,0.00021127,2]
[386476440,1758313839126,-1109.33535063,0.00021127,2]
[386476442,1758313839135,-160.0,0.00021128,2]
[386476444,1758313839144,-3982.72361708,0.00021128,2]
[386476446,1758313839156,-5261.10802629,0.00021128,2]
[386476448,1758313839168,-467.78343142,0.00021128,2]
[386476604,1758313840693,-266.20044163,0.00021128,2]
[386476606,1758313840703,-621.59,0.00021128,2]
[386476608,1758313840712,-480.0,0.00021128,2]
[386476610,1758313840721,-480.0,0.00021128,2]
[386476612,1758313840731,-480.0,0.00021128,2]
[386476614,1758313840739,-480.0,0.00021128,2]
[386476616,1758313840749,-480.0,0.00021128,2]
[386476618,1758313840758,-471.42,0.00021128,2]
[386476619,1758313840767,-621.59,0.00021128,2]
[386476621,1758313840776,-480.0,0.00021128,2]
[386476623,1758313840785,-480.0,0.00021128,2]
[386476625,1758313840795,-480.0,0.00021128,2]
[386476627,1758313840804,-480.0,0.00021129,2]
[386476630,1758313840814,-480.0,0.00021129,2]
[386476632,1758313840824,-480.0,0.00021129,2]
[386476633,1758313840833,-480.0,0.00021129,2]
[386476635,1758313840843,-480.0,0.00021129,2]
[386476637,1758313840852,-480.0,0.00021129,2]
[386476639,1758313840862,-480.0,0.00021129,2]
[386476642,1758313840871,-480.0,0.00021129,2]
[386476644,1758313840880,-496.76054226,0.00021129,2]
[386476645,1758313840890,-480.0,0.00021129,2]
[386476647,1758313840899,-480.0,0.00021129,2]
[386476649,1758313840908,-300.47,0.00021129,2]
[386476651,1758313840918,-236.9,0.00021129,2]
[386476653,1758313840927,-480.0,0.00021129,2]
[386476655,1758313840936,-480.0,0.00021129,2]
[386476657,1758313840945,-480.0,0.00021129,2]
[386476659,1758313840954,-172.59,0.00021129,2]
[386476661,1758313840963,-480.0,0.00021129,2]
[386476663,1758313840972,-494.94,0.00021129,2]
[386476665,1758313840982,-480.0,0.00021129,2]
[386476667,1758313840991,-150.0,0.0002113,2]
[386476669,1758313841000,-480.0,0.0002113,2]
[386476671,1758313841010,-480.0,0.0002113,2]
[386476673,1758313841019,-480.0,0.0002113,2]
[386476675,1758313841028,-480.0,0.0002113,2]
[386476677,1758313841038,-480.0,0.0002113,2]
[386476679,1758313841047,-480.0,0.0002113,2]
[386476681,1758313841056,-614.94940642,0.0002113,2]
[386476683,1758313841065,-480.0,0.0002113,2]
[386476685,1758313841074,-480.0,0.0002113,2]
[386476687,1758313841084,-480.0,0.0002113,2]
[386476689,1758313841093,-480.0,0.0002113,2]
[386476691,1758313841103,-480.0,0.0002113,2]
[386476693,1758313841112,-480.0,0.0002113,2]
[386476695,1758313841121,-480.0,0.0002113,2]
[386476697,1758313841131,-500.0,0.0002113,2]
[386476699,1758313841140,-500.0,0.0002113,2]
[386476701,1758313841149,-500.0,0.0002113,2]
[386476703,1758313841159,-480.0,0.0002113,2]
[386476705,1758313841168,-480.0,0.0002113,2]
[386476706,1758313841177,-500.0,0.0002113,2]
[386476708,1758313841187,-500.0,0.0002113,2]
[386476710,1758313841196,-500.0,0.0002113,2]
[386476712,1758313841206,-480.0,0.0002113,2]
[386476714,1758313841215,-480.0,0.0002113,2]
[386476716,1758313841227,-480.0,0.0002113,2]
[386476719,1758313841237,-480.0,0.0002113,2]
[386476720,1758313841246,-151.0,0.0002113,2]
[386476722,1758313841255,-480.0,0.0002113,2]
[386476724,1758313841264,-500.0,0.0002113,2]
[386476727,1758313841275,-151.0,0.0002113,2]
[386476728,1758313841285,-151.0,0.0002113,2]
[386476730,1758313841295,-480.0,0.00021131,2]
[386476732,1758313841305,-480.0,0.00021131,2]
[386476735,1758313841315,-480.0,0.00021131,2]
[386476737,1758313841324,-151.0,0.00021131,2]
[386476739,1758313841334,-265.38775355,0.00021131,2]
[386476741,1758313841343,-198.0,0.00021131,2]
[386476743,1758313841355,-480.0,0.00021131,2]
[386476744,1758313841364,-500.0,0.00021131,2]
[386476747,1758313841374,-500.0,0.00021131,2]
[386476748,1758313841383,-151.0,0.00021131,2]
[386476750,1758313841393,-151.0,0.00021131,2]
[386476752,1758313841402,-155.6578867,0.00021131,2]
[386476754,1758313841412,-480.0,0.00021132,2]
[386476756,1758313841424,-63.96573,0.00021132,2]
[386476758,1758313841436,-436.03427,0.00021132,2]
[386476760,1758313841446,-621.59,0.00021402,2]
[386476762,1758313841456,-480.0,0.00021402,2]
[386476764,1758313841465,-128.11679599,0.00021402,2]
[386476985,1758313843909,-494.3173247,0.00021129,2]
[386477254,1758313846571,-211.76416503,0.00021125,2]
[386477256,1758313846582,-356.40824462,0.00021128,2]
[386477259,1758313846594,-213.38175538,0.00021128,2]
[386477261,1758313846603,-47.3526753,0.00021129,2]
[386477263,1758313846614,-480.0,0.00021129,2]
[386477265,1758313846623,-351.88320401,0.00021402,2]
[386477267,1758313846634,-480.0,0.00021402,2]
[386477269,1758313846644,-480.0,0.00021402,2]
[386477271,1758313846654,-480.0,0.00021402,2]
[386477272,1758313846664,-621.59,0.00021402,2]
[386477274,1758313846673,-480.0,0.00021402,2]
[386477276,1758313846682,-569.79,0.00021402,2]
[386477278,1758313846691,-480.0,0.00021403,2]
[386477280,1758313846701,-480.0,0.00021403,2]
[386477282,1758313846710,-480.0,0.00021403,2]
[386477284,1758313846719,-480.0,0.00021403,2]
[386477286,1758313846728,-480.0,0.00021403,2]
[386477288,1758313846738,-494.94,0.00021403,2]
[386477290,1758313846747,-480.0,0.00021403,2]
[386477292,1758313846756,-541.67,0.00021403,2]
[386477294,1758313846765,-441.48,0.00021403,2]
[386477296,1758313846774,-500.0,0.00021404,2]
[386477313,1758313846875,-198.0,0.00021404,2]
[386477316,1758313846908,-547.25,0.00021404,2]
[386477318,1758313846918,-480.0,0.00021404,2]
[386477320,1758313846928,-480.0,0.00021404,2]
[386477322,1758313846937,-268.27,0.00021404,2]
[386477324,1758313846946,-480.0,0.00021404,2]
[386477326,1758313846957,-480.0,0.00021405,2]
[386477328,1758313846966,-480.0,0.00021405,2]
[386477330,1758313846975,-480.0,0.00021406,2]
[386477332,1758313846984,-250.0,0.00021564,2]
[386477334,1758313846994,-250.0,0.00021564,2]
[386477336,1758313847003,-500.0,0.00021564,2]
[386477338,1758313847013,-250.0,0.00021564,2]
[386477340,1758313847022,-500.0,0.00021564,2]
[386477342,1758313847031,-500.0,0.00021564,2]
[386477344,1758313847040,-500.0,0.00021564,2]
[386477346,1758313847049,-162.38071901,0.00021564,2]
[386477348,1758313847059,-500.0,0.00021564,2]
[386477350,1758313847069,-500.0,0.00021564,2]
[386477352,1758313847079,-500.0,0.00021564,2]
[386477354,1758313847089,-500.0,0.00021564,2]
[386477356,1758313847098,-598.42543984,0.00021564,2]